lending/lending_fUSD_20241014
["ID","MTS","AMOUNT","RATE_DAILY","PERIOD"]
[340239869,1728897041477,-150.0,0.0001674,2]
[340239870,1728897041487,-1069.62,0.0001674,2]
[340239871,1728897041497,-300.0,0.0001674,2]
[340239872,1728897041506,-429.44,0.0001674,2]
[340239873,1728897041516,-718.18,0.0001674,2]
[340239874,1728897041525,-300.0,0.0001674,2]
[340239875,1728897041536,-456.896,0.00016837,2]
[340239876,1728897041545,-150.0,0.00016871,2]
[340239877,1728897041555,-502.08720999,0.00016913,2]
[340239878,1728897041565,-306.21,0.00017007,2]
[340239879,1728897041574,-500.0,0.00017035,2]
[340239880,1728897041583,-250.0,0.00017123,2]
[340239881,1728897041593,-150.0,0.00017304,2]
[340239882,1728897041602,-11599.93313877,0.00017312,2]
[340239883,1728897041612,-154.573575,0.00017499,2]
[340239884,1728897041621,-306.21,0.0001755,2]
[340239885,1728897041630,-228.08,0.00017699,2]
[340239886,1728897041640,-548.0,0.00017736,2]
[340239887,1728897041649,-150.0,0.00017736,2]
[340239888,1728897041660,-1062.0,0.0001774,2]
[340239889,1728897041669,-500.0,0.0001774,2]
[340239890,1728897041742,-154.573575,0.00017791,2]
[340239891,1728897041752,-350.0,0.00017808,2]
[340239892,1728897041762,-1000.0,0.00017815,2]
[340239893,1728897041772,-456.896,0.00017861,2]
[340239894,1728897041782,-289.08,0.00017892,2]
[340239895,1728897041796,-23730.7518768,0.0001796,4]
[340239896,1728897041806,-161.07149152,0.00017973,2]
[340239897,1728897041815,-1124.1264146,0.00018,2]
[340239898,1728897041825,-1023.30093892,0.00018,2]
[340239899,1728897041835,-750.0,0.00018,2]
[340239900,1728897041844,-869.69,0.00018,2]
[340239901,1728897041854,-869.69,0.00018,2]
[340239902,1728897041863,-869.69,0.00018,2]
[340239903,1728897041874,-869.69,0.00018,2]
[340239904,1728897041884,-869.69,0.00018,2]
[340239905,1728897041894,-869.69,0.00018,2]
[340239906,1728897041903,-869.69,0.00018,2]
[340239907,1728897041913,-869.69,0.00018,2]
[340239908,1728897041923,-869.69,0.00018,2]
[340239909,1728897041932,-869.69,0.00018,2]
[340239910,1728897041941,-869.69,0.00018,2]
[340239911,1728897041951,-869.69,0.00018,2]
[340239912,1728897041961,-869.69,0.00018,2]
[340239913,1728897041971,-869.69,0.00018,2]
[340239914,1728897041981,-869.69,0.00018,2]
[340239915,1728897041990,-869.69,0.00018,2]
[340239916,1728897042000,-869.69,0.00018,2]
[340239917,1728897042010,-869.69,0.00018,2]
[340239918,1728897042019,-869.69,0.00018,2]
[340239919,1728897042029,-869.69,0.00018,2]
[340239920,1728897042038,-154.573575,0.00018082,2]
[340239921,1728897042047,-23730.7518768,0.0001809,4]
[340239922,1728897042057,-306.21,0.00018094,2]
[340239923,1728897042067,-1681.41796152,0.000181,2]
[340239924,1728897042077,-232.69,0.000181,7]
[340239925,1728897042086,-11599.93313877,0.0001816,2]
[340239926,1728897042096,-150.0,0.00018169,2]
[340239927,1728897042105,-177.54,0.00018203,2]
[340239928,1728897042115,-154.573575,0.00018374,2]
[340239929,1728897042125,-347.44463814,0.00018493,2]
[340239930,1728897042134,-1520.91,0.00018571,2]
[340239931,1728897042144,-150.0,0.00018601,2]
[340239932,1728897042153,-306.21,0.00018638,2]
[340239933,1728897042163,-456.896,0.00019,2]
[340239934,1728897042173,-11599.93313877,0.00019008,2]
[340239935,1728897042182,-150.0,0.00019034,2]
[340239936,1728897042192,-217.0,0.00019078,2]
[340239937,1728897042201,-1062.0,0.0001911,2]
[340239938,1728897042218,-500.0,0.0001911,2]
[340239939,1728897042237,-23730.7518768,0.00019117,4]
[340239940,1728897042255,-5000.0,0.00019137,2]
[340239941,1728897042276,-5000.0,0.00019137,2]
[340239942,1728897042295,-5000.0,0.00019137,2]
[340239943,1728897042312,-161.33933335,0.00019155,2]
[340239944,1728897042331,-200.0,0.00019178,2]
[340239945,1728897042345,-200.0,0.00019178,2]
[340239946,1728897042363,-200.0,0.00019178,2]
[340239947,1728897042381,-200.0,0.00019178,2]
[340239948,1728897042401,-200.0,0.00019178,2]
[340239949,1728897042413,-200.0,0.00019178,2]
[340239950,1728897042431,-194.0,0.00019178,2]
[340239951,1728897042448,-302.1,0.000194,2]
[340239952,1728897042465,-373.0,0.000194,2]
[340239953,1728897042478,-1000.0,0.000194,2]
[340239954,1728897042492,-227.0,0.000194,2]
[340239955,1728897042506,-167.60961591,0.00019401,2]
[340239956,1728897042521,-150.0,0.00019466,2]
[340239957,1728897042536,-228.08,0.00019469,2]
[340239958,1728897042552,-23730.7518768,0.00019471,4]
[340239959,1728897042566,-17338.4885907,0.00019471,4]
[340239960,1728897042580,-23730.7518768,0.00019482,4]
[340239961,1728897042595,-17338.4885907,0.00019501,4]
[340239962,1728897042610,-23730.7518768,0.00019553,4]
[340239963,1728897042625,-17338.4885907,0.00019553,4]
[340239964,1728897042641,-555.0,0.00019563,2]
[340239965,1728897042658,-1581.982,0.00019563,2]
[340239966,1728897042673,-1667.799,0.00019563,2]
[340239967,1728897042689,-9915.959,0.00019563,2]
[340239968,1728897042704,-3566.59,0.00019566,2]
[340239969,1728897042719,-1000.0,0.00019596,2]
[340239970,1728897042733,-933.72,0.00019616,2]
[340239971,1728897042748,-217.85,0.00019658,2]
[340239972,1728897042763,-500.0,0.00019673,2]
[340239973,1728897042779,-289.08,0.00019681,2]
[340239974,1728897042793,-47461.5037535,0.00019691,4]
[340239975,1728897042807,-69353.9543628,0.00019691,4]
[340239976,1728897042822,-500.0,0.00019701,2]
[340239977,1728897042836,-500.0,0.00019701,2]
[340239978,1728897042850,-500.0,0.00019701,2]
[340239979,1728897042864,-500.0,0.00019701,2]
[340239980,1728897042883,-500.0,0.00019701,2]
[340239981,1728897042897,-500.0,0.00019701,2]
[340239982,1728897042914,-500.0,0.00019701,2]
[340239983,1728897042927,-500.0,0.00019701,2]
[340239984,1728897042936,-500.0,0.00019701,2]
[340239985,1728897043059,-500.0,0.00019701,2]
[340239986,1728897043068,-500.0,0.00019701,2]
[340239987,1728897043077,-500.0,0.00019701,2]
[340239988,1728897043086,-500.0,0.00019701,2]
[340239989,1728897043095,-500.0,0.00019701,2]
[340239990,1728897043104,-500.0,0.00019701,2]
[340239991,1728897043114,-500.0,0.00019701,2]
[340239992,1728897043123,-500.0,0.00019701,2]
[340239993,1728897043132,-500.0,0.00019701,2]
[340239994,1728897043142,-500.0,0.00019701,2]
[340239995,1728897043151,-500.0,0.00019701,2]
[340239997,1728897043161,-500.0,0.00019701,2]
[340239998,1728897043170,-500.0,0.00019701,2]
[340239999,1728897043179,-500.0,0.00019701,2]
[340240000,1728897043188,-500.0,0.00019701,2]
[340240001,1728897043197,-500.0,0.00019701,2]
[340240002,1728897043206,-500.0,0.00019701,2]
[340240003,1728897043215,-500.0,0.00019701,2]
[340240004,1728897043224,-500.0,0.00019701,2]
[340240005,1728897043233,-500.0,0.00019701,2]
[340240006,1728897043242,-500.0,0.00019701,2]
[340240007,1728897043251,-500.0,0.00019701,2]
[340240008,1728897043259,-500.0,0.00019701,2]
[340240010,1728897043268,-500.0,0.00019701,2]
[340240011,1728897043277,-500.0,0.00019701,2]
[340240012,1728897043286,-500.0,0.00019701,2]
[340240013,1728897043295,-500.0,0.00019701,2]
[340240014,1728897043305,-500.0,0.00019701,2]
[340240015,1728897043315,-500.0,0.00019701,2]
[340240016,1728897043324,-500.0,0.00019701,2]
[340240017,1728897043334,-500.0,0.00019701,2]
[340240018,1728897043344,-500.0,0.00019701,2]
[340240019,1728897043353,-500.0,0.00019701,2]
[340240020,1728897043363,-500.0,0.00019701,2]
[340240021,1728897043372,-500.0,0.00019701,2]
[340240022,1728897043382,-500.0,0.00019701,2]
[340240023,1728897043391,-500.0,0.00019701,2]
[340240024,1728897043400,-500.0,0.00019701,2]
[340240025,1728897043411,-500.0,0.00019701,2]
[340240026,1728897043421,-500.0,0.00019701,2]
[340240027,1728897043430,-500.0,0.00019701,2]
[340240028,1728897043440,-500.0,0.00019701,2]
[340240029,1728897043449,-500.0,0.00019701,2]
[340240030,1728897043459,-500.0,0.00019701,2]
[340240031,1728897043468,-500.0,0.00019701,2]
[340240032,1728897043478,-500.0,0.00019701,2]
[340240033,1728897043487,-500.0,0.00019701,2]
[340240034,1728897043497,-500.0,0.00019701,2]
[340240035,1728897043506,-500.0,0.00019701,2]
[340240036,1728897043515,-500.0,0.00019701,2]
[340240037,1728897043524,-500.0,0.00019701,2]
[340240039,1728897043534,-500.0,0.00019701,2]
[340240041,1728897043543,-500.0,0.00019701,2]
[340240043,1728897043552,-500.0,0.00019701,2]
[340240044,1728897043562,-500.0,0.00019701,2]
[340240045,1728897043571,-500.0,0.00019701,2]
[340240046,1728897043580,-500.0,0.00019701,2]
[340240047,1728897043589,-500.0,0.00019701,2]
[340240049,1728897043599,-500.0,0.00019701,2]
[340240051,1728897043608,-500.0,0.00019701,2]
[340240053,1728897043617,-500.0,0.00019701,2]
[340240055,1728897043626,-500.0,0.00019701,2]
[340240056,1728897043635,-500.0,0.00019701,2]
[340240057,1728897043644,-500.0,0.00019701,2]
[340240058,1728897043653,-500.0,0.00019701,2]
[340240059,1728897043665,-500.0,0.00019701,2]
[340240060,1728897043674,-500.0,0.00019701,2]
[340240061,1728897043683,-500.0,0.00019701,2]
[340240062,1728897043692,-500.0,0.00019701,2]
[340240063,1728897043701,-500.0,0.00019701,2]
[340240064,1728897043709,-500.0,0.00019701,2]
[340240065,1728897043719,-500.0,0.00019701,2]
[340240066,1728897043728,-500.0,0.00019701,2]
[340240067,1728897043737,-500.0,0.00019701,2]
[340240068,1728897043746,-500.0,0.00019701,2]
[340240069,1728897043755,-500.0,0.00019701,2]
[340240070,1728897043764,-500.0,0.00019701,2]
[340240071,1728897043773,-500.0,0.00019701,2]
[340240072,1728897043782,-500.0,0.00019701,2]
[340240073,1728897043791,-500.0,0.00019701,2]
[340240074,1728897043800,-500.0,0.00019701,2]
[340240075,1728897043808,-500.0,0.00019701,2]
[340240076,1728897043818,-500.0,0.00019701,2]
[340240077,1728897043827,-500.0,0.00019701,2]
[340240078,1728897043835,-500.0,0.00019701,2]
[340240079,1728897043844,-500.0,0.00019701,2]
[340240080,1728897043853,-500.0,0.00019701,2]
[340240081,1728897043862,-500.0,0.00019701,2]
[340240082,1728897043872,-500.0,0.00019701,2]
[340240083,1728897043884,-500.0,0.00019701,2]
[340240084,1728897043894,-500.0,0.00019701,2]
[340240085,1728897043904,-500.0,0.00019701,2]
[340240086,1728897043917,-500.0,0.00019701,2]
[340240087,1728897043926,-500.0,0.00019701,2]
[340240088,1728897043935,-500.0,0.00019701,2]
[340240089,1728897043944,-500.0,0.00019701,2]
[340240090,1728897043955,-500.0,0.00019701,2]
[340240091,1728897043964,-500.0,0.00019701,2]
[340240092,1728897043973,-500.0,0.00019701,2]
[340240093,1728897043982,-500.0,0.00019701,2]
[340240094,1728897043991,-500.0,0.00019701,2]
[340240095,1728897044000,-500.0,0.00019701,2]
[340240096,1728897044009,-500.0,0.00019701,2]
[340240097,1728897044019,-500.0,0.00019701,2]
[340240098,1728897044028,-500.0,0.00019701,2]
[340240099,1728897044038,-500.0,0.00019701,2]
[340240100,1728897044047,-500.0,0.00019701,2]
[340240101,1728897044057,-500.0,0.00019701,2]
[340240102,1728897044067,-500.0,0.00019701,2]
[340240103,1728897044077,-500.0,0.00019701,2]
[340240104,1728897044087,-500.0,0.00019701,2]
[340240105,1728897044098,-500.0,0.00019701,2]
[340240106,1728897044108,-500.0,0.00019701,2]
[340240107,1728897044118,-500.0,0.00019701,2]
[340240108,1728897044127,-500.0,0.00019701,2]
[340240109,1728897044137,-500.0,0.00019701,2]
[340240110,1728897044147,-500.0,0.00019701,2]
[340240111,1728897044158,-500.0,0.00019701,2]
[340240112,1728897044168,-500.0,0.00019701,2]
[340240113,1728897044178,-500.0,0.00019701,2]
[340240114,1728897044188,-500.0,0.00019701,2]
[340240115,1728897044198,-500.0,0.00019701,2]
[340240116,1728897044207,-500.0,0.00019701,2]
[340240117,1728897044217,-500.0,0.00019701,2]
[340240118,1728897044227,-500.0,0.00019701,2]
[340240119,1728897044237,-500.0,0.00019701,2]
[340240120,1728897044246,-500.0,0.00019701,2]
[340240121,1728897044257,-500.0,0.00019701,2]
[340240122,1728897044267,-500.0,0.00019701,2]
[340240123,1728897044277,-500.0,0.00019701,2]
[340240125,1728897044287,-500.0,0.00019701,2]
[340240126,1728897044296,-500.0,0.00019701,2]
[340240127,1728897044306,-500.0,0.00019701,2]
[340240128,1728897044315,-500.0,0.00019701,2]
[340240129,1728897044325,-500.0,0.00019701,2]
[340240130,1728897044334,-500.0,0.00019701,2]
[340240131,1728897044343,-500.0,0.00019701,2]
[340240132,1728897044353,-500.0,0.00019701,2]
[340240133,1728897044362,-500.0,0.00019701,2]
[340240134,1728897044371,-500.0,0.00019701,2]
[340240135,1728897044381,-500.0,0.00019701,2]
[340240136,1728897044390,-500.0,0.00019701,2]
[340240137,1728897044399,-500.0,0.00019701,2]
[340240138,1728897044410,-500.0,0.00019701,2]
[340240139,1728897044420,-500.0,0.00019701,2]
[340240140,1728897044429,-500.0,0.00019701,2]
[340240141,1728897044439,-500.0,0.00019701,2]
[340240142,1728897044448,-500.0,0.00019701,2]
[340240143,1728897044457,-500.0,0.00019701,2]
[340240144,1728897044467,-500.0,0.00019701,2]
[340240145,1728897044476,-500.0,0.00019701,2]
[340240146,1728897044485,-500.0,0.00019701,2]
[340240147,1728897044560,-500.0,0.00019701,2]
[340240148,1728897044579,-500.0,0.00019701,2]
[340240149,1728897044589,-500.0,0.00019701,2]
[340240150,1728897044599,-500.0,0.00019701,2]
[340240151,1728897044608,-500.0,0.00019701,2]
[340240152,1728897044618,-500.0,0.00019701,2]
[340240153,1728897044627,-500.0,0.00019701,2]
[340240154,1728897044636,-500.0,0.00019701,2]
[340240155,1728897044646,-500.0,0.00019701,2]
[340240156,1728897044656,-500.0,0.00019701,2]
[340240157,1728897044666,-500.0,0.00019701,2]
[340240158,1728897044675,-500.0,0.00019701,2]
[340240159,1728897044685,-500.0,0.00019701,2]
[340240160,1728897044694,-500.0,0.00019701,2]
[340240161,1728897044704,-500.0,0.00019701,2]
[340240162,1728897044714,-500.0,0.00019701,2]
[340240163,1728897044723,-500.0,0.00019701,2]
[340240164,1728897044733,-500.0,0.00019701,2]
[340240165,1728897044742,-500.0,0.00019701,2]
[340240166,1728897044751,-500.0,0.00019701,2]
[340240167,1728897044760,-500.0,0.00019701,2]
[340240168,1728897044769,-500.0,0.00019701,2]
[340240169,1728897044779,-500.0,0.00019701,2]
[340240170,1728897044788,-500.0,0.00019701,2]
[340240171,1728897044797,-500.0,0.00019701,2]
[340240172,1728897044807,-500.0,0.00019701,2]
[340240173,1728897044816,-500.0,0.00019701,2]
[340240174,1728897044826,-500.0,0.00019701,2]
[340240175,1728897044835,-500.0,0.00019701,2]
[340240176,1728897044844,-500.0,0.00019701,2]
[340240177,1728897044854,-500.0,0.00019701,2]
[340240178,1728897044863,-500.0,0.00019701,2]
[340240179,1728897044874,-500.0,0.00019701,2]
[340240180,1728897044885,-500.0,0.00019701,2]
[340240181,1728897044894,-500.0,0.00019701,2]
[340240182,1728897044904,-500.0,0.00019701,2]
[340240183,1728897044916,-500.0,0.00019701,2]
[340240184,1728897044925,-500.0,0.00019701,2]
[340240185,1728897044935,-500.0,0.00019701,2]
[340240186,1728897044945,-500.0,0.00019701,2]
[340240187,1728897044959,-500.0,0.00019701,2]
[340240188,1728897044968,-500.0,0.00019701,2]
[340240189,1728897044978,-500.0,0.00019701,2]
[340240190,1728897044987,-500.0,0.00019701,2]
[340240191,1728897044997,-500.0,0.00019701,2]
[340240192,1728897045006,-500.0,0.00019701,2]
[340240193,1728897045016,-500.0,0.00019701,2]
[340240194,1728897045025,-500.0,0.00019701,2]
[340240195,1728897045034,-500.0,0.00019701,2]
[340240196,1728897045044,-500.0,0.00019701,2]
[340240197,1728897045054,-500.0,0.00019701,2]
[340240198,1728897045063,-500.0,0.00019701,2]
[340240199,1728897045073,-500.0,0.00019701,2]
[340240200,1728897045085,-500.0,0.00019701,2]
[340240201,1728897045095,-500.0,0.00019701,2]
[340240202,1728897045104,-500.0,0.00019701,2]
[340240203,1728897045113,-500.0,0.00019701,2]
[340240204,1728897045123,-500.0,0.00019701,2]
[340240205,1728897045132,-500.0,0.00019701,2]
[340240206,1728897045142,-500.0,0.00019701,2]
[340240207,1728897045151,-500.0,0.00019701,2]
[340240208,1728897045162,-500.0,0.00019701,2]
[340240209,1728897045171,-500.0,0.00019701,2]
[340240210,1728897045180,-11599.93313877,0.00019856,2]
[340240211,1728897045190,-150.0,0.00019899,2]
[340240212,1728897045199,-201.51283764,0.000199,2]
[340240213,1728897045209,-4640.3291932,0.000199,3]
[340240214,1728897045218,-23730.7518768,0.0001998,4]
[340240215,1728897045228,-23730.7518768,0.0001999,4]
[340240216,1728897045237,-17338.4885907,0.0001999,4]
[340240217,1728897045247,-500.0,0.00019999,2]
[340240218,1728897045256,-195.35022756,0.00019999,2]
[340240219,1728897045267,-500.0,0.00019999,2]
[340240220,1728897045276,-213.447745,0.00019999,2]
[340240221,1728897045286,-649.04107904,0.00019999,2]
[340240222,1728897045296,-500.0,0.00019999,2]
[340240223,1728897045306,-500.0,0.00019999,2]
[340240224,1728897045316,-500.0,0.00019999,2]
[340240225,1728897045326,-500.0,0.00019999,2]
[340240226,1728897045336,-517.32462188,0.00019999,2]
[340240227,1728897045346,-429.36093269,0.00019999,2]
[340240228,1728897045355,-500.0,0.00019999,2]
[340240229,1728897045365,-500.0,0.00019999,2]
[340240230,1728897045375,-500.0,0.00019999,2]
[340240231,1728897045384,-500.0,0.00019999,2]
[340240232,1728897045394,-500.0,0.00019999,2]
[340240233,1728897045403,-500.0,0.00019999,2]
[340240234,1728897045414,-500.0,0.00019999,2]
[340240235,1728897045423,-500.0,0.00019999,2]
[340240236,1728897045433,-500.0,0.00019999,2]
[340240237,1728897045443,-500.0,0.00019999,2]
[340240238,1728897045452,-500.0,0.00019999,2]
[340240239,1728897045462,-500.0,0.00019999,2]
[340240240,1728897045471,-500.0,0.00019999,2]
[340240241,1728897045481,-500.0,0.00019999,2]
[340240242,1728897045490,-365.31037831,0.00019999,2]
[340240243,1728897045499,-500.0,0.00019999,2]
[340240244,1728897045509,-500.0,0.00019999,2]
[340240245,1728897045518,-500.0,0.00019999,2]
[340240246,1728897045527,-500.0,0.00019999,2]
[340240247,1728897045537,-500.0,0.00019999,2]
[340240248,1728897045547,-500.0,0.00019999,2]
[340240249,1728897045556,-500.0,0.00019999,2]
[340240250,1728897045566,-500.0,0.00019999,2]
[340240251,1728897045575,-500.0,0.00019999,2]
[340240252,1728897045584,-500.0,0.00019999,2]
[340240253,1728897045593,-500.0,0.00019999,2]
[340240254,1728897045603,-295.24090707,0.0002,2]
[340240255,1728897045613,-16193.30954846,0.0002,2]
[340240256,1728897045622,-1377.63278691,0.0002,5]
[340240257,1728897045631,-3792.63477163,0.0002,2]
[340240258,1728897045641,-3950.0,0.0002,2]
[340240259,1728897045650,-466.60810722,0.0002,10]
[340240260,1728897045661,-800.0,0.0002,2]
[340240261,1728897045670,-2000.0,0.0002,2]
[340240262,1728897045680,-2000.0,0.0002,2]
[340240263,1728897045689,-597.97595,0.0002,2]
[340240264,1728897045698,-502.74,0.0002,2]
[340240265,1728897045707,-502.74,0.0002,2]
[340240266,1728897045716,-502.74,0.0002,2]
[340240267,1728897045725,-502.74,0.0002,2]
[340240268,1728897045735,-502.74,0.0002,2]
[340240269,1728897045744,-502.74,0.0002,2]
[340240270,1728897045753,-502.74,0.0002,2]
[340240271,1728897045762,-502.74,0.0002,2]
[340240272,1728897045772,-502.74,0.0002,2]
[340240273,1728897045781,-502.74,0.0002,2]
[340240274,1728897045791,-3019.426975,0.0002001,2]
[340240275,1728897045801,-2000.0,0.0002001,2]
[340240276,1728897045810,-17338.4885907,0.00020017,4]
[340240277,1728897045820,-3780.111812,0.0002002,2]
[340240278,1728897045829,-300.0,0.00020027,2]
[340240279,1728897045838,-300.0,0.00020027,2]
[340240280,1728897045848,-302.64,0.00020027,2]
[340240281,1728897045858,-150.0,0.00020027,2]
[340240282,1728897045867,-150.0,0.00020027,2]
[340240283,1728897045879,-150.0,0.00020027,2]
[340240284,1728897045889,-150.0,0.00020027,2]
[340240285,1728897045898,-429.59,0.00020027,2]
[340240286,1728897045977,-661.92,0.00020027,2]
[340240287,1728897045986,-429.59,0.00020027,2]
[340240288,1728897045995,-359.2,0.00020027,2]
[340240289,1728897046004,-359.2,0.00020027,2]
[340240290,1728897046014,-429.59,0.00020027,2]
[340240291,1728897046023,-535.04,0.00020027,2]
[340240292,1728897046032,-429.59,0.00020027,2]
[340240294,1728897046041,-535.04,0.00020027,2]
[340240295,1728897046050,-359.2,0.00020027,2]
[340240296,1728897046059,-429.59,0.00020027,2]
[340240297,1728897046068,-535.04,0.00020027,2]
[340240298,1728897046077,-359.2,0.00020027,2]
[340240299,1728897046087,-150.0,0.00020027,2]
[340240300,1728897046096,-657.67106346,0.000201,2]
[340240301,1728897046105,-150.0,0.00020244,2]
[340240302,1728897046114,-456.896,0.00020274,2]
[340240303,1728897046124,-543.96,0.00020274,2]
[340240304,1728897046134,-150.0,0.00020332,2]
[340240305,1728897046143,-167.60961591,0.00020401,2]
[340240306,1728897046153,-177.54,0.00020478,2]
[340240307,1728897046163,-1062.0,0.00020479,2]
[340240308,1728897046172,-500.0,0.00020479,2]
[340240309,1728897046182,-500.0,0.000205,2]
[340240310,1728897046191,-1500.0,0.000205,2]
[340240311,1728897046201,-2500.0,0.000205,2]
[340240312,1728897046210,-200.0,0.000205,2]
[340240313,1728897046220,-537.87845072,0.000205,2]
[340240314,1728897046231,-175.01,0.00020548,2]
[340240315,1728897046240,-423.99,0.00020575,2]
[340240316,1728897046250,-966.0,0.00020575,2]
[340240317,1728897046259,-755.56,0.00020575,2]
[340240318,1728897046269,-424.12,0.00020575,2]
[340240319,1728897046279,-424.12,0.00020575,2]
[340240320,1728897046289,-424.12,0.00020575,2]
[340240321,1728897046299,-424.12,0.00020575,2]
[340240322,1728897046308,-424.12,0.00020575,2]
[340240323,1728897046318,-264.16,0.00020575,2]
[340240324,1728897046328,-423.99,0.00020575,2]
[340240325,1728897046338,-150.0,0.00020694,4]
[340240326,1728897046349,-11599.93313877,0.00020704,2]
[340240327,1728897046359,-158.87,0.00020723,2]
[340240328,1728897046369,-150.0,0.00020764,2]
[340240329,1728897046379,-1520.91,0.00020835,2]
[340240330,1728897046389,-23730.7518768,0.00020839,4]
[340240331,1728897046399,-17338.4885907,0.00020839,4]
[340240332,1728897046409,-150.0,0.00020849,2]
[340240333,1728897046420,-150.0,0.00020849,2]
[340240334,1728897046430,-150.0,0.00020849,2]
[340240335,1728897046440,-429.59,0.00020849,2]
[340240336,1728897046450,-359.2,0.00020849,2]
[340240337,1728897046460,-429.59,0.00020849,2]
[340240338,1728897046470,-300.0,0.00020849,2]
[340240339,1728897046480,-359.2,0.00020849,2]
[340240340,1728897046490,-429.59,0.00020849,2]
[340240341,1728897046500,-150.0,0.00020849,2]
[340240342,1728897046510,-359.2,0.00020849,2]
[340240343,1728897046520,-535.04,0.00020849,2]
[340240344,1728897046530,-534.66,0.00020849,2]
[340240345,1728897046539,-534.81,0.00020849,2]
[340240346,1728897046549,-150.0,0.00020849,2]
[340240347,1728897046560,-300.39,0.00020849,2]
[340240348,1728897046570,-429.44,0.00020849,2]
[340240349,1728897046579,-150.0,0.00020849,2]
[340240350,1728897046588,-150.0,0.00020849,2]
[340240351,1728897046598,-150.0,0.00020849,2]
[340240352,1728897046607,-150.0,0.00020849,2]
[340240353,1728897046617,-150.0,0.00020849,2]
[340240354,1728897046626,-150.0,0.00020849,2]
[340240355,1728897046636,-150.0,0.00020849,2]
[340240356,1728897046645,-534.96,0.00020849,2]
[340240357,1728897046655,-150.0,0.00020849,2]
[340240358,1728897046665,-535.04,0.00020849,2]
[340240359,1728897046675,-150.0,0.00020849,2]
[340240360,1728897046685,-150.0,0.00020849,2]
[340240361,1728897046695,-150.0,0.00020849,2]
[340240362,1728897046705,-535.04,0.00020849,2]
[340240363,1728897046714,-535.04,0.00020849,2]
[340240364,1728897046724,-150.0,0.00020849,2]
[340240365,1728897046734,-535.04,0.00020849,2]
[340240366,1728897046743,-358.56,0.00020849,2]
[340240367,1728897046753,-535.04,0.00020849,2]
[340240368,1728897046763,-150.0,0.00020849,2]
[340240369,1728897046773,-359.2,0.00020849,2]
[340240370,1728897046783,-535.04,0.00020849,2]
[340240371,1728897046793,-429.59,0.00020849,2]
[340240372,1728897046802,-359.2,0.00020849,2]
[340240373,1728897046812,-535.04,0.00020849,2]
[340240374,1728897046821,-429.59,0.00020849,2]
[340240375,1728897046830,-535.04,0.00020849,2]
[340240376,1728897046840,-359.2,0.00020849,2]
[340240377,1728897046849,-429.59,0.00020849,2]
[340240378,1728897046859,-429.59,0.00020849,2]
[340240379,1728897046868,-359.2,0.00020849,2]